[Event "*** Titled Tuesday Blitz"]
[Site "Chess.com"]
[Date "2021.03.09"]
[Round "8"]
[White "Ladislav1969"]
[Black "SARGISMV"]
[Result "1-0"]
[WhiteElo "2339"]
[BlackElo "2452"]
[TimeControl "180+1"]
[EndTime "11:31:23 PST"]
[Termination "Ladislav1969 won by resignation"]

1. e4 {[%clk 0:03:00.9]} 1... e6 {[%clk 0:02:54.9]} 2. d4 {[%clk 0:03:00.2]}
2... d5 {[%clk 0:02:54.8]} 3. e5 {[%clk 0:03:01.1]} 3... c5 {[%clk 0:02:54.8]}
4. c3 {[%clk 0:03:02]} 4... Nc6 {[%clk 0:02:55.1]} 5. Nf3 {[%clk 0:03:02.7]}
5... Nh6 {[%clk 0:02:55.5]} 6. Na3 {[%clk 0:02:59.5]} 6... Nf5 {[%clk
0:02:50.5]} 7. Nc2 {[%clk 0:02:59.3]} 7... cxd4 {[%clk 0:02:50.9]} 8. cxd4
{[%clk 0:02:58.9]} 8... Bd7 {[%clk 0:02:51.1]} 9. Ne3 {[%clk 0:02:53.8]} 9...
Bb4+ {[%clk 0:02:47.4]} 10. Bd2 {[%clk 0:02:53.1]} 10... Nxe3 {[%clk 0:02:47]}
11. fxe3 {[%clk 0:02:52]} 11... Qa5 {[%clk 0:02:39.8]} 12. Bd3 {[%clk
0:02:46.7]} 12... O-O {[%clk 0:02:37.3]} 13. O-O {[%clk 0:02:41.8]} 13... Bxd2
{[%clk 0:02:32.8]} 14. Nxd2 {[%clk 0:02:41.1]} 14... h6 {[%clk 0:02:15.3]} 15.
Nb3 {[%clk 0:02:28.8]} 15... Qd8 {[%clk 0:02:06.4]} 16. Qg4 {[%clk 0:02:25.4]}
16... Qg5 {[%clk 0:01:57.3]} 17. Qh3 {[%clk 0:02:18.9]} 17... Nb4 {[%clk
0:01:35.9]} 18. Bb1 {[%clk 0:02:12.8]} 18... f5 {[%clk 0:01:25.5]} 19. a3 {[%clk
0:01:55.1]} 19... Na6 {[%clk 0:01:12.5]} 20. Bd3 {[%clk 0:01:54.2]} 20... Ba4
{[%clk 0:01:02.6]} 21. Bxa6 {[%clk 0:01:50.8]} 21... Bxb3 {[%clk 0:01:02.6]} 22.
Bxb7 {[%clk 0:01:46.4]} 22... Rab8 {[%clk 0:01:02.8]} 23. Ba6 {[%clk 0:01:45.8]}
23... Kh8 {[%clk 0:00:40]} 24. Rac1 {[%clk 0:01:45.4]} 24... f4 {[%clk
0:00:39.3]} 25. exf4 {[%clk 0:01:36.2]} 25... Rxf4 {[%clk 0:00:40.2]} 26. Qxe6
{[%clk 0:01:36.3]} 26... Rbf8 {[%clk 0:00:24.8]} 27. Qh3 {[%clk 0:00:57.4]}
27... Bc4 {[%clk 0:00:13.5]} 28. Bxc4 {[%clk 0:00:56.4]} 28... dxc4 {[%clk
0:00:14.4]} 29. Qc3 {[%clk 0:00:51.9]} 29... Qf5 {[%clk 0:00:05.3]} 30. Qe1
{[%clk 0:00:45.5]} 30... Qg5 {[%clk 0:00:03.3]} 31. Qe2 {[%clk 0:00:34.2]} 31...
Qf5 {[%clk 0:00:02.3]} 32. Rxf4 {[%clk 0:00:30.4]} 32... Qxf4 {[%clk 0:00:03.2]}
33. Rd1 {[%clk 0:00:30.9]} 33... c3 {[%clk 0:00:03.2]} 34. bxc3 {[%clk
0:00:30.5]} 34... Rc8 {[%clk 0:00:03.1]} 35. e6 {[%clk 0:00:29.7]} 35... Rxc3
{[%clk 0:00:03]} 36. e7 {[%clk 0:00:30]} 36... Re3 {[%clk 0:00:03.7]} 37. e8=Q+
{[%clk 0:00:30.3]} 37... Kh7 {[%clk 0:00:03.7]} 38. Q8xe3 {[%clk 0:00:28.9]} 1-0

[Event "*** Titled Tuesday Blitz"]
[Site "Chess.com"]
[Date "2021.03.09"]
[Round "8"]
[White "arctic_t00"]
[Black "chessmachine14"]
[Result "1-0"]
[WhiteElo "2539"]
[BlackElo "2338"]
[TimeControl "180+1"]
[EndTime "11:31:25 PST"]
[Termination "arctic_t00 won on time"]

1. d4 {[%clk 0:03:00.9]} 1... Nf6 {[%clk 0:02:57]} 2. Nf3 {[%clk 0:03:00.5]}
2... g6 {[%clk 0:02:56.4]} 3. Nbd2 {[%clk 0:02:59.8]} 3... d5 {[%clk 0:02:54.1]}
4. e3 {[%clk 0:02:59.6]} 4... Bg7 {[%clk 0:02:53.4]} 5. b4 {[%clk 0:02:59.9]}
5... O-O {[%clk 0:02:52.4]} 6. Bb2 {[%clk 0:02:59.8]} 6... a5 {[%clk 0:02:52.5]}
7. b5 {[%clk 0:02:59.7]} 7... a4 {[%clk 0:02:52.9]} 8. Ba3 {[%clk 0:02:54.5]}
8... c6 {[%clk 0:02:00.7]} 9. bxc6 {[%clk 0:02:53.9]} 9... Nxc6 {[%clk
0:01:58.5]} 10. Bd3 {[%clk 0:02:50.8]} 10... Re8 {[%clk 0:01:33.7]} 11. O-O
{[%clk 0:02:23]} 11... e5 {[%clk 0:01:32.5]} 12. dxe5 {[%clk 0:02:22.9]} 12...
Ng4 {[%clk 0:01:31.8]} 13. Rb1 {[%clk 0:02:17.9]} 13... Ngxe5 {[%clk 0:01:23.8]}
14. h3 {[%clk 0:02:07.8]} 14... Nxd3 {[%clk 0:00:58.7]} 15. cxd3 {[%clk
0:02:07.3]} 15... Bf5 {[%clk 0:00:58.9]} 16. Rxb7 {[%clk 0:01:40.9]} 16... Bxd3
{[%clk 0:00:57.9]} 17. Re1 {[%clk 0:01:41.7]} 17... Na5 {[%clk 0:00:57.9]} 18.
Rb4 {[%clk 0:01:29.6]} 18... Bc3 {[%clk 0:00:56.8]} 19. Rxa4 {[%clk 0:01:22.4]}
19... Nc4 {[%clk 0:00:52.5]} 20. Nxc4 {[%clk 0:00:51.7]} 20... Bxe1 {[%clk
0:00:48.2]} 21. Nd6 {[%clk 0:00:35.8]} 21... Rxa4 {[%clk 0:00:22.9]} 22. Qxa4
{[%clk 0:00:35.4]} 22... Re6 {[%clk 0:00:23.1]} 23. Nxe1 {[%clk 0:00:33.2]}
23... Be2 {[%clk 0:00:16.8]} 24. Qc2 {[%clk 0:00:30.8]} 24... Ba6 {[%clk
0:00:11.5]} 25. Qc6 {[%clk 0:00:30.5]} 25... Bc8 {[%clk 0:00:10.9]} 26. Nf3
{[%clk 0:00:26.1]} 26... Bd7 {[%clk 0:00:10.9]} 27. Qxd5 {[%clk 0:00:25]} 27...
Qb8 {[%clk 0:00:08.2]} 28. Nd4 {[%clk 0:00:22.8]} 28... Qb1+ {[%clk 0:00:07.1]}
29. Kh2 {[%clk 0:00:23.1]} 29... Rf6 {[%clk 0:00:06.9]} 30. Ne4 {[%clk
0:00:22.2]} 30... Qb8+ {[%clk 0:00:02.6]} 31. Bd6 {[%clk 0:00:20.8]} 31... Qd8
{[%clk 0:00:01]} 32. Nxf6+ {[%clk 0:00:19.7]} 32... Qxf6 {[%clk 0:00:01.9]} 33.
Bg3 {[%clk 0:00:18.8]} 1-0

[Event "*** Titled Tuesday Blitz"]
[Site "Chess.com"]
[Date "2021.03.09"]
[Round "8"]
[White "kamilianin235"]
[Black "JiiHart"]
[Result "1-0"]
[WhiteElo "2271"]
[BlackElo "2070"]
[TimeControl "180+1"]
[EndTime "11:31:26 PST"]
[Termination "kamilianin235 won on time"]

1. e4 {[%clk 0:03:00.9]} 1... c5 {[%clk 0:02:59.7]} 2. Nf3 {[%clk 0:03:00.5]}
2... Nc6 {[%clk 0:02:59.8]} 3. Bb5 {[%clk 0:02:59.1]} 3... g6 {[%clk 0:02:59.6]}
4. Bxc6 {[%clk 0:02:59.1]} 4... dxc6 {[%clk 0:02:59.9]} 5. d3 {[%clk 0:02:58.7]}
5... Bg7 {[%clk 0:03:00]} 6. h3 {[%clk 0:02:58.8]} 6... e5 {[%clk 0:02:58]} 7.
O-O {[%clk 0:02:55.2]} 7... Qc7 {[%clk 0:02:53]} 8. a3 {[%clk 0:02:55]} 8... Nf6
{[%clk 0:02:50.9]} 9. b4 {[%clk 0:02:54.3]} 9... cxb4 {[%clk 0:02:47.7]} 10.
axb4 {[%clk 0:02:55.2]} 10... Be6 {[%clk 0:02:42.1]} 11. Nbd2 {[%clk 0:02:53.6]}
11... h6 {[%clk 0:02:38.7]} 12. Ba3 {[%clk 0:02:46.4]} 12... Nd7 {[%clk
0:02:26.1]} 13. Qe2 {[%clk 0:02:42.9]} 13... O-O {[%clk 0:02:19.9]} 14. Nc4
{[%clk 0:02:39.8]} 14... Bxc4 {[%clk 0:01:56.7]} 15. dxc4 {[%clk 0:02:40.7]}
15... Rfe8 {[%clk 0:01:56.7]} 16. Rfd1 {[%clk 0:02:39.6]} 16... Rad8 {[%clk
0:01:53.3]} 17. Bb2 {[%clk 0:02:38.2]} 17... Nf8 {[%clk 0:01:43.9]} 18. Rxd8
{[%clk 0:02:30.4]} 18... Rxd8 {[%clk 0:01:14.7]} 19. Rxa7 {[%clk 0:02:28.1]}
19... Ne6 {[%clk 0:01:14.7]} 20. Ra1 {[%clk 0:02:24.1]} 20... Nf4 {[%clk
0:01:14.1]} 21. Qe3 {[%clk 0:02:21.1]} 21... Qd6 {[%clk 0:00:48.5]} 22. c5
{[%clk 0:02:08]} 22... Qe6 {[%clk 0:00:47.4]} 23. Kh2 {[%clk 0:01:59.6]} 23...
h5 {[%clk 0:00:40.2]} 24. Ng5 {[%clk 0:01:57.2]} 24... Qd7 {[%clk 0:00:34.8]}
25. Nf3 {[%clk 0:01:55.1]} 25... f6 {[%clk 0:00:29.4]} 26. Qb3+ {[%clk
0:01:54.6]} 26... Kh7 {[%clk 0:00:29.1]} 27. Ra7 {[%clk 0:01:52]} 27... Bh6
{[%clk 0:00:21.7]} 28. Bc1 {[%clk 0:01:41.9]} 28... Qe7 {[%clk 0:00:16]} 29. Be3
{[%clk 0:01:37.3]} 29... Rd7 {[%clk 0:00:15.1]} 30. Ra8 {[%clk 0:01:36.6]} 30...
Ne6 {[%clk 0:00:11.6]} 31. Bxh6 {[%clk 0:01:33.1]} 31... Kxh6 {[%clk 0:00:10.3]}
32. Qe3+ {[%clk 0:01:33.5]} 32... Kg7 {[%clk 0:00:09.9]} 33. c3 {[%clk
0:01:26.5]} 33... Nf4 {[%clk 0:00:09.9]} 34. Qe1 {[%clk 0:01:18.2]} 34... Qe6
{[%clk 0:00:10]} 35. Ra7 {[%clk 0:01:16]} 35... Qc4 {[%clk 0:00:09.1]} 36. Ra3
{[%clk 0:01:01.2]} 36... Rd3 {[%clk 0:00:06.8]} 37. Ng1 {[%clk 0:00:51.7]} 37...
Qe6 {[%clk 0:00:05.9]} 38. Qc1 {[%clk 0:00:48.3]} 38... g5 {[%clk 0:00:04.8]}
39. g3 {[%clk 0:00:43.1]} 39... Ng6 {[%clk 0:00:03.1]} 40. Qc2 {[%clk 0:00:41]}
40... Qd7 {[%clk 0:00:01.7]} 41. Kg2 {[%clk 0:00:37.4]} 1-0

[Event "*** Titled Tuesday Blitz"]
[Site "Chess.com"]
[Date "2021.03.09"]
[Round "8"]
[White "Kislov_Oleg"]
[Black "Guzman70"]
[Result "1-0"]
[WhiteElo "2476"]
[BlackElo "2342"]
[TimeControl "180+1"]
[EndTime "11:31:27 PST"]
[Termination "Kislov_Oleg won by resignation"]

1. d4 {[%clk 0:03:00.9]} 1... Nf6 {[%clk 0:02:59.3]} 2. Nc3 {[%clk 0:03:01]}
2... d5 {[%clk 0:02:57.6]} 3. Bg5 {[%clk 0:03:00.4]} 3... Nbd7 {[%clk
0:02:57.1]} 4. Nf3 {[%clk 0:02:59.7]} 4... e6 {[%clk 0:02:55]} 5. e4 {[%clk
0:02:57.5]} 5... Bb4 {[%clk 0:02:54.2]} 6. e5 {[%clk 0:02:50]} 6... h6 {[%clk
0:02:50.2]} 7. Bd2 {[%clk 0:02:43]} 7... Bxc3 {[%clk 0:02:45.3]} 8. bxc3 {[%clk
0:02:43.1]} 8... Ne4 {[%clk 0:02:45.3]} 9. Bd3 {[%clk 0:02:43]} 9... c5 {[%clk
0:02:42.2]} 10. O-O {[%clk 0:02:39.7]} 10... Nxd2 {[%clk 0:02:33.1]} 11. Qxd2
{[%clk 0:02:34.7]} 11... Qa5 {[%clk 0:02:27.4]} 12. Rfb1 {[%clk 0:02:08.9]}
12... c4 {[%clk 0:02:26.2]} 13. Be2 {[%clk 0:02:04.7]} 13... Qa3 {[%clk
0:02:21.3]} 14. Nh4 {[%clk 0:01:51.2]} 14... g5 {[%clk 0:02:16.7]} 15. Nf3
{[%clk 0:01:48]} 15... Nb6 {[%clk 0:02:14]} 16. h4 {[%clk 0:01:43.8]} 16... g4
{[%clk 0:02:09.5]} 17. Nh2 {[%clk 0:01:43.9]} 17... h5 {[%clk 0:02:09.3]} 18. f3
{[%clk 0:01:22.6]} 18... Na4 {[%clk 0:01:48.8]} 19. fxg4 {[%clk 0:01:20.9]}
19... Qxc3 {[%clk 0:01:46.3]} 20. Qf4 {[%clk 0:01:06.4]} 20... hxg4 {[%clk
0:01:38]} 21. Nxg4 {[%clk 0:01:04.7]} 21... Nb6 {[%clk 0:01:31.1]} 22. Rf1
{[%clk 0:01:02.3]} 22... Rf8 {[%clk 0:01:27.3]} 23. Nf6+ {[%clk 0:01:01.1]}
23... Ke7 {[%clk 0:01:24.9]} 24. Qg5 {[%clk 0:00:32.8]} 24... Qxd4+ {[%clk
0:01:20.5]} 25. Kh1 {[%clk 0:00:28.6]} 25... Kd8 {[%clk 0:01:13]} 26. Nxd5+
{[%clk 0:00:24.5]} 26... f6 {[%clk 0:01:13.2]} 27. Rxf6 {[%clk 0:00:17.6]} 27...
Nxd5 {[%clk 0:00:54]} 28. Rxf8+ {[%clk 0:00:15.4]} 28... Kc7 {[%clk 0:00:54.2]}
29. Qd8+ {[%clk 0:00:14.3]} 29... Kc6 {[%clk 0:00:53.2]} 30. Qd6+ {[%clk
0:00:14.8]} 30... Kb5 {[%clk 0:00:51]} 31. Rb1+ {[%clk 0:00:14.9]} 31... Ka4
{[%clk 0:00:46]} 32. Rf3 {[%clk 0:00:13.7]} 32... Qxh4+ {[%clk 0:00:39.7]} 33.
Rh3 {[%clk 0:00:12.3]} 33... Qxh3+ {[%clk 0:00:36.6]} 34. gxh3 {[%clk 0:00:12]}
34... a5 {[%clk 0:00:33.6]} 35. Bxc4 {[%clk 0:00:11.4]} 35... Nb4 {[%clk
0:00:30]} 36. Qc5 {[%clk 0:00:07.8]} 36... Bd7 {[%clk 0:00:27.8]} 37. Bb3+
{[%clk 0:00:05.7]} 37... Ka3 {[%clk 0:00:28.1]} 38. c3 {[%clk 0:00:06]} 38...
Rc8 {[%clk 0:00:25.9]} 39. Qxa5+ {[%clk 0:00:05.4]} 1-0

[Event "*** Titled Tuesday Blitz"]
[Site "Chess.com"]
[Date "2021.03.09"]
[Round "8"]
[White "noblerone"]
[Black "Fore_Man"]
[Result "1-0"]
[WhiteElo "2394"]
[BlackElo "2249"]
[TimeControl "180+1"]
[EndTime "11:31:27 PST"]
[Termination "noblerone won by resignation"]

1. d4 {[%clk 0:03:00.9]} 1... e6 {[%clk 0:02:57.8]} 2. Nf3 {[%clk 0:03:00.9]}
2... Nf6 {[%clk 0:02:54.1]} 3. Bg5 {[%clk 0:02:59.3]} 3... d5 {[%clk 0:02:50.6]}
4. Nbd2 {[%clk 0:02:58.1]} 4... Be7 {[%clk 0:02:43.1]} 5. e3 {[%clk 0:02:58.2]}
5... O-O {[%clk 0:02:37.6]} 6. Bd3 {[%clk 0:02:58.2]} 6... c5 {[%clk 0:02:37.2]}
7. c3 {[%clk 0:02:58.1]} 7... Nbd7 {[%clk 0:02:37]} 8. O-O {[%clk 0:02:58.1]}
8... h6 {[%clk 0:02:37.2]} 9. Bh4 {[%clk 0:02:57.4]} 9... Qc7 {[%clk 0:02:37.5]}
10. Qe2 {[%clk 0:02:45.9]} 10... b6 {[%clk 0:02:35.8]} 11. Rac1 {[%clk
0:02:43.5]} 11... Bb7 {[%clk 0:02:33.4]} 12. e4 {[%clk 0:02:16.3]} 12... dxe4
{[%clk 0:02:29]} 13. Nxe4 {[%clk 0:02:15.2]} 13... Rfe8 {[%clk 0:02:19.9]} 14.
Bg3 {[%clk 0:02:03.7]} 14... Qd8 {[%clk 0:02:04.6]} 15. Nd6 {[%clk 0:01:51.2]}
15... Bxd6 {[%clk 0:02:01.1]} 16. Bxd6 {[%clk 0:01:52.1]} 16... cxd4 {[%clk
0:01:40.5]} 17. Nxd4 {[%clk 0:01:41.8]} 17... Nc5 {[%clk 0:01:36.7]} 18. Bxc5
{[%clk 0:01:22.5]} 18... bxc5 {[%clk 0:01:35.5]} 19. Nf3 {[%clk 0:01:20.3]}
19... Qb6 {[%clk 0:01:31]} 20. Rfd1 {[%clk 0:01:12.3]} 20... Bxf3 {[%clk
0:01:23.6]} 21. Qxf3 {[%clk 0:01:07.8]} 21... Qxb2 {[%clk 0:01:22.7]} 22. a4
{[%clk 0:00:37.9]} 22... Rad8 {[%clk 0:01:14.1]} 23. Bb5 {[%clk 0:00:35.1]}
23... Rf8 {[%clk 0:01:09]} 24. h3 {[%clk 0:00:33.7]} 24... Nd5 {[%clk
0:01:01.5]} 25. Rf1 {[%clk 0:00:19]} 25... Qd2 {[%clk 0:00:52.4]} 26. Rfd1
{[%clk 0:00:16.2]} 26... Qf4 {[%clk 0:00:48.3]} 27. Qxf4 {[%clk 0:00:15]} 27...
Nxf4 {[%clk 0:00:47.9]} 28. Kf1 {[%clk 0:00:15.9]} 28... e5 {[%clk 0:00:24.7]}
29. h4 {[%clk 0:00:15.5]} 29... g5 {[%clk 0:00:22.7]} 30. hxg5 {[%clk
0:00:15.2]} 30... hxg5 {[%clk 0:00:22.5]} 31. g3 {[%clk 0:00:16.1]} 31... Ne6
{[%clk 0:00:21.4]} 32. Bc4 {[%clk 0:00:16.5]} 32... Kg7 {[%clk 0:00:15.2]} 33.
Bxe6 {[%clk 0:00:15.7]} 33... fxe6 {[%clk 0:00:15.2]} 34. Ke2 {[%clk 0:00:16.2]}
34... Kf6 {[%clk 0:00:14.9]} 35. Rb1 {[%clk 0:00:15.8]} 35... Rxd1 {[%clk
0:00:14.9]} 36. Rxd1 {[%clk 0:00:15.4]} 36... Rb8 {[%clk 0:00:14.6]} 37. Rd7
{[%clk 0:00:14.9]} 37... Rb2+ {[%clk 0:00:15]} 38. Ke3 {[%clk 0:00:15.4]} 38...
Rd2 {[%clk 0:00:15.1]} 39. Rxd2 {[%clk 0:00:15]} 1-0

[Event "*** Titled Tuesday Blitz"]
[Site "Chess.com"]
[Date "2021.03.09"]
[Round "8"]
[White "Grieve72"]
[Black "Oglob71"]
[Result "0-1"]
[WhiteElo "2501"]
[BlackElo "2398"]
[TimeControl "180+1"]
[EndTime "11:31:28 PST"]
[Termination "Oglob71 won by checkmate"]

1. d4 {[%clk 0:02:58.1]} 1... Nf6 {[%clk 0:02:51.8]} 2. Bg5 {[%clk 0:02:57.8]}
2... Ne4 {[%clk 0:02:50]} 3. Bf4 {[%clk 0:02:57.8]} 3... d5 {[%clk 0:02:49.6]}
4. e3 {[%clk 0:02:57.8]} 4... Bf5 {[%clk 0:02:48.2]} 5. f3 {[%clk 0:02:56.7]}
5... Nf6 {[%clk 0:02:45.7]} 6. g4 {[%clk 0:02:56.3]} 6... Bc8 {[%clk 0:02:46.1]}
7. c4 {[%clk 0:02:32]} 7... e6 {[%clk 0:02:45.5]} 8. Nc3 {[%clk 0:02:28.9]} 8...
dxc4 {[%clk 0:02:37.5]} 9. Bxc4 {[%clk 0:02:25.5]} 9... Nd5 {[%clk 0:02:37.8]}
10. Nge2 {[%clk 0:02:15.6]} 10... Nxf4 {[%clk 0:02:32.7]} 11. Nxf4 {[%clk
0:02:16.5]} 11... Bd6 {[%clk 0:02:30.8]} 12. Qc2 {[%clk 0:01:57.5]} 12... Qh4+
{[%clk 0:02:28.7]} 13. Ke2 {[%clk 0:01:56.1]} 13... O-O {[%clk 0:02:24.2]} 14.
Ne4 {[%clk 0:01:42.7]} 14... Bxf4 {[%clk 0:02:15.6]} 15. exf4 {[%clk 0:01:43.6]}
15... Nc6 {[%clk 0:02:14.3]} 16. Rad1 {[%clk 0:01:40.9]} 16... Rd8 {[%clk
0:02:13.5]} 17. Ke3 {[%clk 0:01:38]} 17... Nb4 {[%clk 0:02:12.4]} 18. Qf2 {[%clk
0:01:29.6]} 18... Qxf2+ {[%clk 0:02:05.8]} 19. Kxf2 {[%clk 0:01:24.7]} 19... Bd7
{[%clk 0:02:03.3]} 20. a3 {[%clk 0:01:22.2]} 20... Nd5 {[%clk 0:02:02.4]} 21.
Bxd5 {[%clk 0:01:22.4]} 21... exd5 {[%clk 0:02:02.3]} 22. Nc3 {[%clk 0:01:22.1]}
22... c6 {[%clk 0:01:58.8]} 23. Rhe1 {[%clk 0:01:20]} 23... Re8 {[%clk
0:01:58.6]} 24. h4 {[%clk 0:01:15.6]} 24... Kf8 {[%clk 0:01:56]} 25. f5 {[%clk
0:01:13.7]} 25... f6 {[%clk 0:01:55.4]} 26. Ne2 {[%clk 0:01:02.7]} 26... b6
{[%clk 0:01:53]} 27. Nf4 {[%clk 0:01:02.2]} 27... Kf7 {[%clk 0:01:52.6]} 28.
Rxe8 {[%clk 0:00:55.1]} 28... Rxe8 {[%clk 0:01:50.7]} 29. Re1 {[%clk 0:00:55.4]}
29... Rxe1 {[%clk 0:01:45.1]} 30. Kxe1 {[%clk 0:00:56.3]} 30... Ke7 {[%clk
0:01:44]} 31. Kd2 {[%clk 0:00:56.2]} 31... Be8 {[%clk 0:01:42]} 32. b4 {[%clk
0:00:54.6]} 32... Bf7 {[%clk 0:01:40]} 33. Ke3 {[%clk 0:00:51.5]} 33... Kd6
{[%clk 0:01:40.2]} 34. Nd3 {[%clk 0:00:51.4]} 34... Be8 {[%clk 0:01:35.6]} 35.
Nf4 {[%clk 0:00:48.3]} 35... Bf7 {[%clk 0:01:32.2]} 36. Kd3 {[%clk 0:00:38.4]}
36... c5 {[%clk 0:01:26.7]} 37. dxc5+ {[%clk 0:00:34.6]} 37... bxc5 {[%clk
0:01:26.5]} 38. bxc5+ {[%clk 0:00:35.5]} 38... Kxc5 {[%clk 0:01:25.8]} 39. Kd2
{[%clk 0:00:22.2]} 39... Kd6 {[%clk 0:01:22.5]} 40. Ke3 {[%clk 0:00:20]} 40...
Kc5 {[%clk 0:01:21]} 41. Nd3+ {[%clk 0:00:18]} 41... Kc4 {[%clk 0:01:20.3]} 42.
Nf4 {[%clk 0:00:18.4]} 42... d4+ {[%clk 0:01:19.9]} 43. Kd2 {[%clk 0:00:18.8]}
43... Bd5 {[%clk 0:01:12.8]} 44. Ke2 {[%clk 0:00:13.8]} 44... a5 {[%clk
0:01:10.1]} 45. Nh5 {[%clk 0:00:13.1]} 45... Kc3 {[%clk 0:01:07.8]} 46. Nf4
{[%clk 0:00:10.4]} 46... Bc4+ {[%clk 0:01:07.5]} 47. Kd1 {[%clk 0:00:10.8]}
47... d3 {[%clk 0:01:07.6]} 48. g5 {[%clk 0:00:05.5]} 48... Bb3+ {[%clk
0:01:06.9]} 49. Ke1 {[%clk 0:00:06.1]} 49... d2+ {[%clk 0:01:07]} 50. Kf2 {[%clk
0:00:06.6]} 50... d1=Q {[%clk 0:01:06.6]} 51. g6 {[%clk 0:00:06.9]} 51... hxg6
{[%clk 0:01:04.4]} 52. fxg6 {[%clk 0:00:07.8]} 52... Qd2+ {[%clk 0:01:01.5]} 53.
Kg3 {[%clk 0:00:07.8]} 53... Qd6 {[%clk 0:01:01.8]} 54. Kg4 {[%clk 0:00:07.7]}
54... Be6+ {[%clk 0:01:01.5]} 55. Kh5 {[%clk 0:00:05.1]} 55... Qe5# {[%clk
0:01:01.1]} 0-1

[Event "*** Titled Tuesday Blitz"]
[Site "Chess.com"]
[Date "2021.03.09"]
[Round "8"]
[White "FMalexhdez"]
[Black "rachidhuilda"]
[Result "1-0"]
[WhiteElo "2179"]
[BlackElo "2262"]
[TimeControl "180+1"]
[EndTime "11:31:28 PST"]
[Termination "FMalexhdez won on time"]

1. e4 {[%clk 0:03:00.9]} 1... c5 {[%clk 0:02:58.6]} 2. Nf3 {[%clk 0:03:00.2]}
2... e6 {[%clk 0:02:58.7]} 3. d4 {[%clk 0:03:00.7]} 3... cxd4 {[%clk 0:02:58.8]}
4. Nxd4 {[%clk 0:03:01.2]} 4... a6 {[%clk 0:02:59]} 5. c4 {[%clk 0:02:59.9]}
5... Nf6 {[%clk 0:02:58.3]} 6. Nc3 {[%clk 0:03:00.4]} 6... Bb4 {[%clk
0:02:57.8]} 7. Bd3 {[%clk 0:02:57.3]} 7... Nc6 {[%clk 0:02:51.6]} 8. Nc2 {[%clk
0:02:54.6]} 8... Bxc3+ {[%clk 0:02:46.4]} 9. bxc3 {[%clk 0:02:53.5]} 9... Qa5
{[%clk 0:02:45.4]} 10. Qd2 {[%clk 0:02:41.5]} 10... O-O {[%clk 0:02:39.7]} 11.
Ba3 {[%clk 0:02:37.6]} 11... Re8 {[%clk 0:02:31.9]} 12. Bd6 {[%clk 0:02:31.9]}
12... b6 {[%clk 0:02:00.1]} 13. e5 {[%clk 0:02:30.1]} 13... Nxe5 {[%clk
0:01:55.3]} 14. O-O {[%clk 0:02:04.4]} 14... Nxd3 {[%clk 0:01:54.5]} 15. Qxd3
{[%clk 0:02:01.9]} 15... Bb7 {[%clk 0:01:46]} 16. Nd4 {[%clk 0:01:43.7]} 16...
Qg5 {[%clk 0:01:24.8]} 17. Qh3 {[%clk 0:01:33.7]} 17... Rac8 {[%clk 0:01:03.7]}
18. f4 {[%clk 0:01:31.7]} 18... Qg4 {[%clk 0:01:02.9]} 19. Qxg4 {[%clk
0:01:28.2]} 19... Nxg4 {[%clk 0:01:03]} 20. Rfb1 {[%clk 0:01:16.8]} 20... Rxc4
{[%clk 0:00:58.7]} 21. Rxb6 {[%clk 0:01:16.1]} 21... Be4 {[%clk 0:00:25.7]} 22.
Ne2 {[%clk 0:00:55.3]} 22... a5 {[%clk 0:00:18.1]} 23. Ra6 {[%clk 0:00:41]}
23... a4 {[%clk 0:00:18.1]} 24. Rd1 {[%clk 0:00:33.6]} 24... Ne3 {[%clk
0:00:15.4]} 25. Rd4 {[%clk 0:00:33.2]} 25... Rxd4 {[%clk 0:00:15.5]} 26. Nxd4
{[%clk 0:00:29.5]} 26... Nxg2 {[%clk 0:00:08.4]} 27. Rxa4 {[%clk 0:00:28.7]}
27... Ne3 {[%clk 0:00:07.9]} 28. Rb4 {[%clk 0:00:20.4]} 28... f5 {[%clk
0:00:07.4]} 29. a4 {[%clk 0:00:18.8]} 29... Ra8 {[%clk 0:00:07.5]} 30. Rb8+
{[%clk 0:00:17.3]} 30... Rxb8 {[%clk 0:00:07.2]} 31. Bxb8 {[%clk 0:00:17.9]}
31... Nd5 {[%clk 0:00:07.4]} 32. Nb5 {[%clk 0:00:13.9]} 32... Bd3 {[%clk
0:00:04.3]} 33. Be5 {[%clk 0:00:08.6]} 1-0